Cogmind - Beta 13 @@@ ROGUE MODE // 2024.04.18 @ 19:54:56 Player: shockk Result: Destroyed by Y-45 Defender with Heavy Assault Rifle Performance ------------- Evolutions (1) 500 Regions Visited (2) 400 Robots Destroyed (20) 100 Value Destroyed (520) 520 Prototype IDs (3) 60 Alien Tech Used (0) 0 Bonus (0) 0 TOTAL SCORE: 1580 Bonus ------- None Cogmind --------- Core Integrity 0/400 Matter 172/300 Energy 59/100 System Corruption 0% Temperature Cool (0) Movement Core (100) Ox1 Location -9/Materials Parts ------- > --- POWER (2) -------- (None) > --- PROPULSION (2) --- (None) > --- UTILITY (3) ------ Visual Processing Unit Improved Targeting Computer > --- WEAPON (2) ------- Shock Bomb Launcher > --- INVENTORY (5) ---- Heat Sink Reaction Control System Reaction Control System Tractor Beam Peak State ------------ > --- POWER ------------ Light Ion Engine > --- PROPULSION ------- Titanium Leg Titanium Leg > --- UTILITY ---------- Visual Processing Unit Improved Targeting Computer ECM Suite > --- WEAPON ----------- Shock Bomb Launcher Shock Bomb Launcher > --- INVENTORY -------- Heat Sink Small Matter Pod Tractor Beam Improved EM Shotgun [Rating: 18] Favorites ----------- Power Light Ion Engine Engine Light Ion Engine Propulsion Aluminum Leg Leg Aluminum Leg Utility Heat Sink Device Heat Sink Storage Small Matter Pod Processor Visual Processing Unit Weapon Light Assault Rifle Energy Gun Particle Gun Ballistic Gun Light Assault Rifle Launcher Shock Bomb Launcher Build | -11 -10 -9 ------- Run | Yrd Mat Mat Slots Evolved 2 | . . 2 Power 1 | . . 1 Propulsion . | . . . Utility 1 | . . 1 Weapon . | . . . Parts Attached 31 | 6 11 14 Power 3 | 2 1 . Engine 3 | 2 1 . Core . | . . . Reactor . | . . . Propulsion 6 | 2 2 2 Treads . | . . . Leg 6 | 2 2 2 Wheel . | . . . Hover . | . . . Flight . | . . . Utility 10 | . 5 5 Device 7 | . 5 2 Storage 1 | . . 1 Processor 2 | . . 2 Hackware . | . . . Protection . | . . . Artifact . | . . . Weapon 12 | 2 3 7 Energy Gun 4 | . 3 1 Energy Cannon . | . . . Ballistic Gun 2 | 2 . . Ballistic Cannon . | . . . Launcher 6 | . . 6 Special Weapon . | . . . Impact Weapon . | . . . Slashing Weapon . | . . . Piercing Weapon . | . . . Special Melee Weapon . | . . . Unidentified Prototypes 1 | . 1 . Parts Lost 9 | . . 9 Power 1 | . . 1 Propulsion 2 | . . 2 Utility 2 | . . 2 Weapon 4 | . . 4 Highest Loss Streak 4 | . . 4 To Critical Strikes . | . . . Average Slot Usage (%) 86 | . 95 73 Engine 11 | . 14 8 Leg 24 | . 27 19 Device 19 | . 24 14 Processor 6 | . . 15 Energy Gun 7 | . 10 3 Ballistic Gun 9 | . 17 . Launcher 5 | . . 12 Naked Turns . | . . . Heaviest Build 17 | 8 12 17 Greatest Support 34 | 20 26 34 Greatest Overweight (x) 2 | 1 . 2 Average Overweight (x) . | . . . Largest Inventory Capacity 5 | 5 5 5 Average Capacity 5 | 5 5 5 Most Carried 5 | 2 5 5 Average Carried 3 | 1 3 4 Final Capacity 5 | 5 5 5 Final Carried 4 | 2 4 4 Class Distribution -------------------- 100% | Mutant Dominant Class ---------------- Mutant | -10/Materials Mutant | -9/Materials Resources | -11 -10 -9 ----------- Run | Yrd Mat Mat Matter Collected 533 | 272 200 61 Remotely 105 | . 99 6 Salvage Created 515 | 44 142 329 Parts 51 | 2 8 41 Haulers Intercepted . | . . . Recyclers Shooed . | . . . Parts Field Recycled . | . . . Retrieved Matter . | . . . Parts Self-Destructed . | . . . Prevented . | . . . Kills | -11 -10 -9 ------- Run | Yrd Mat Mat Combat Hostiles Destroyed 14 | 1 3 10 Guns 4 | 1 3 . AOE 10 | . . 10 Classes Destroyed 7 | 1 . 6 Worker 2 | . . 2 Builder 2 | . . 2 Tunneler 1 | . . 1 Watcher 1 | . . 1 Swarmer 4 | . . 4 Grunt 8 | 1 3 4 Sentry 2 | . . 2 Best Kill Streak 9 | 1 2 9 Combat Bots Only 6 | 1 2 6 Max Kills in Single Turn 7 | 1 1 7 Gunslinging . | . . . Exploded 4 | . . 4 Melee . | . . . Uniques/NPCs Destroyed . | . . . Combat | -11 -10 -9 -------- Run | Yrd Mat Mat Hostile Shots Fired 133 | 4 18 111 Missed 42 | 1 2 39 Damage Taken 1511 | 35 263 1213 Core 461 | 23 31 407 Absorbed by Shields . | . . . Core Remaining (%) 84 | 90 78 . Volleys Fired 32 | 3 14 15 Largest 2 | 2 2 2 Hottest 110 | 40 110 72 Shots Fired 52 | 6 28 18 Gun 34 | 6 28 . Cannon . | . . . Launcher 18 | . . 18 Special . | . . . Kinetic 26 | 6 20 . Thermal 4 | . 4 . Explosive 9 | . . 9 Electromagnetic 13 | . 4 9 Robot Hit Streak 7 | 4 7 4 Robot Miss Streak 2 | 1 2 2 Penetration Max . | . . . Secondary Targets . | . . . Shots Hit Robots 31 | 4 22 5 Core Hits 32 | 2 8 22 Critical Kills . | . . . Critical Parts Destroyed . | . . . Critical Strikes . | . . . Melee Attacks . | . . . Impact . | . . . Slashing . | . . . Piercing . | . . . Sneak Attacks . | . . . Combat Hostiles . | . . . Follow-up Attacks . | . . . Damage Inflicted 1564 | 45 232 1287 Guns 277 | 45 232 . Cannons . | . . . Explosions 1287 | . . 1287 Melee . | . . . Ramming . | . . . Kinetic 200 | 45 155 . Thermal 392 | . 30 362 Explosive 714 | . . 714 Electromagnetic 258 | . 47 211 Impact . | . . . Slashing . | . . . Piercing . | . . . Highest Corruption . | . . . Average Corruption . | . . . Corruption Purged . | . . . Corruption Blocked . | . . . Overload Shots . | . . . Overflow Damage 66 | . . 66 Projectiles . | . . . Explosions 66 | . . 66 Melee . | . . . Knockbacks . | . . . Impact . | . . . Kinetic . | . . . Secondary . | . . . Self-Inflicted Damage 140 | . 28 112 Shots 6 | . 1 5 Rammed . | . . . Targets Rammed . | . . . Kicked . | . . . Crushed . | . . . Highest Temperature 90 | . 90 12 Average Temperature 33 | . 39 5 Received Heat Transfer 435 | 18 129 288 Siege Activations . | . . . Robots Corrupted . | . . . Combat Hostiles . | . . . Parts Fried . | . . . Impact Corruptions . | . . . Robots Melted . | . . . Combat Hostiles . | . . . Parts Melted . | . . . Heat Transferred 324 | . 74 250 Parts Sabotaged . | . . . Parts Stolen . | . . . Parts Stripped . | . . . Power Chain Reactions 1 | . 1 . Alert | -11 -10 -9 ------- Run | Yrd Mat Mat Peak Influence 333 | 20 65 333 Initial 14 | . 13 14 Average 80 | 12 29 173 Maximum Alert Level 1 | . . 1 Low Security (%) 83 | 100 100 56 Level 1 16 | . . 43 Level 2 . | . . . Level 3 . | . . . Level 4 . | . . . Level 5 . | . . . High Security . | . . . Max Security . | . . . Squads Dispatched 1 | . 1 . Investigation . | . . . Extermination . | . . . Reinforcement 1 | . 1 . Assault . | . . . Garrison . | . . . Intercept . | . . . Searches Triggered . | . . . Construction Impeded . | . . . Haulers Reinforced . | . . . Active Scanning Responses . | . . . Cargo Convoy Interrupts . | . . . Stealth | -11 -10 -9 --------- Run | Yrd Mat Mat Distress Signals 2 | . . 2 Communications Jammed . | . . . Distress Signals . | . . . Times Spotted 33 | 1 7 25 Peak Tracking Total 8 | 1 2 8 Tactical Retreats 1 | . . 1 Traps | -11 -10 -9 ------- Run | Yrd Mat Mat Traps Triggered 1 | . . 1 Indirectly . | . . . Trap Hack Attempts . | . . . Triggered . | . . . Disarmed . | . . . Reprogrammed . | . . . Reused . | . . . Traps Extracted . | . . . Installed . | . . . Triggered . | . . . Machines | -11 -10 -9 ---------- Run | Yrd Mat Mat Machines Disabled 7 | . . 7 Max in Single Turn 2 | . . 2 Machines Repaired . | . . . Machines Dismantled . | . . . Machines Sabotaged . | . . . Overloaded Fab Kills . | . . . Hacking | -11 -10 -9 --------- Run | Yrd Mat Mat Machines Accessed 3 | . 1 2 Terminals 3 | . 1 2 Fabricators . | . . . Repair Stations . | . . . Recycling Units . | . . . Scanalyzers . | . . . Garrison Access . | . . . Total Hacks 6 | . 2 4 Successful 3 | . 1 2 Failed 3 | . 1 2 Catastrophic . | . . . Database Lockouts . | . . . Manual 1 | . 1 . Terminals 6 | . 2 4 Fabricators . | . . . Repair Stations . | . . . Recycling Units . | . . . Scanalyzers . | . . . Garrison Access . | . . . Terminal Hacks 3 | . 1 2 Record 1 | . 1 . Prototype ID Bank 1 | . . 1 Security Status 1 | . . 1 Fabricator Hacks . | . . . Repair Station Hacks . | . . . Recycling Unit Hacks . | . . . Scanalyzer . | . . . Garrison Access Hacks . | . . . Unauthorized Hacks . | . . . Terminals . | . . . Fabricators . | . . . Repair Stations . | . . . Recycling Units . | . . . Scanalyzers . | . . . Garrison Access . | . . . Data Cores Recovered . | . . . Used . | . . . Hacking Detections 3 | . 1 2 Full Trace Events . | . . . Feedback Events . | . . . Feedback Blocked . | . . . Robot Schematics Acquired . | . . . Robots Built . | . . . Authchips . | . . . Time . | . . . Total Robot Build Rating . | . . . Part Schematics Acquired . | . . . Parts Built . | . . . Authchips . | . . . Time . | . . . Total Part Build Rating . | . . . Parts Repaired . | . . . Time . | . . . Parts Recycled . | . . . Recycled Matter . | . . . Retrieved Matter . | . . . Retrieved Components . | . . . Parts Scanalyzed . | . . . Part Schematics Acquired . | . . . Parts Damaged . | . . . Bothacking | -11 -10 -9 ------------ Run | Yrd Mat Mat Used RIF Installer . | . . . Robots Hacked . | . . . Non-combat . | . . . Combat . | . . . Robot Hacks Applied . | . . . Relay Couplers Released . | . . . Fabnet Peak Effective % . | . . . Robots Rewired . | . . . Allies Hacked . | . . . Hacks Repelled . | . . . Allies | -11 -10 -9 -------- Run | Yrd Mat Mat Total Allies . | . . . Largest Group . | . . . Highest-Rated Group . | . . . Highest-Rated Ally . | . . . Total Orders . | . . . Ally Attacks . | . . . Total Damage . | . . . Kills . | . . . Allies Corrupted . | . . . Allies Melted . | . . . Intel | -11 -10 -9 ------- Run | Yrd Mat Mat Robot Analysis Total . | . . . Derelict Logs Recovered . | . . . Drone Launches . | . . . Drone Recoveries . | . . . Exploration | -11 -10 -9 ------------- Run | Yrd Mat Mat Turns Passed 1933 | 322 887 724 Spaces Moved 1364 | 192 656 516 Core 139 | 86 . 53 Treads . | . . . Legs 1225 | 106 656 463 Wheels . | . . . Hover . | . . . Flight . | . . . Fastest Speed 50 | 50 120 50 Average Speed 117 | 96 120 123 Slowest Speed 150 | 120 120 150 Overloaded Moves . | . . . Propulsion Burnouts . | . . . Robots Hopped . | . . . Cave-ins Triggered . | . . . Exploration Rate (%) 32 | 8 61 28 Regions Visited 2 Branch Regions . Pre-discovered Areas . | . . . Known Exits Taken . | . . . Unknown Exits Taken 2 | 1 1 . Scrap Searched . | . . . Spaces Dug . | . . . Terrain Destroyed 74 | . 6 68 Melee . | . . . Projectile . | . . . AOE 74 | . 6 68 Terrain Rammed . | . . . Walls Destroyed . | . . . Machines Disabled . | . . . Actions | -11 -10 -9 --------- Run | Yrd Mat Mat Total 1654 | 325 736 593 Wait 156 | 104 33 19 Move 1362 | 191 655 516 Hop . | . . . Pick Up 41 | 14 11 16 Fast Attach . | . . . Attach 29 | 5 10 14 Detach 7 | . 5 2 Swap 2 | 1 1 . Drop 25 | 7 7 11 Fire 32 | 3 14 15 Melee . | . . . Ram . | . . . Kick . | . . . Crush . | . . . Escape Stasis . | . . . Rewire . | . . . Trap . | . . . Miscellaneous . | . . . Route ------- -11/Scrapyard -10/Materials (discovered 3 exits: *Mat x2 / [*Min]) -9/Materials (discovered 1 exit: [*Min]) History --------- Turn | Location | Event 2 | -11/Scrapyard | Met Revision 17 109 | -11/Scrapyard | Discovered new exit (range 8) 323 | -11/Scrapyard | Entered Materials 324 | -10/Materials | Build established: Mutant 664 | -10/Materials | Discovered new exit (range 15) 1027 | -10/Materials | Discovered new exit (range 16) 1107 | -10/Materials | Discovered new exit (range 8) 1210 | -10/Materials | Entered another Materials area 1210 | -9/Materials | Evolved 2 slots: Power x1, Utility x1 1424 | -9/Materials | Discovered new exit (range 12) 1804 | -9/Materials | Lost 4 parts (1p1u2w) 1884 | -9/Materials | Core integrity fell below 50% 1924 | -9/Materials | Core integrity fell below 20% 1931 | -9/Materials | Lost 4 parts (2n1u1w) 1934 | -9/Materials | Destroyed by Y-45 Defender with Heavy Assault Rifle Last Messages --------------- Y-45 Defender destroyed. Door malfunctions. U-05 Engineer destroyed. U-05 Engineer lays Concrete. Shock Bomb Launcher destroyed. U-05 Engineer repairs door. U-05 Engineer lays Concrete. Acquired Shock Bomb Launcher. Y-45 Defender destroyed. Y-45 Defender misfires. Matter Pump disabled. Titanium Leg destroyed. M-13 Machinist repairs Y-45 Defender. Y-45 Defender IFF system glitched. Titanium Leg destroyed. Y-45 Defender misfires. Sml. Matter Pod destroyed. Shock Bomb Launcher destroyed. Hadron Collector disabled. Y-45 Defender misfires. Map ----- +----------------------------------------------------+ | ???????????????????????????????# #??? | | ???????????????????????????????# #??? | | ???????????????????????????????# #??? | | ?????????????????####+########## #??? | | #????????????????# #??? | | #????????????????# #??? | | #????????????????# #??? | | #####????????????# #######+##### #??? | | # # #####????????# #???????????# #??? | | #????????# #???????????# #??? | | ################## #???????????# #??? | | #???????????# #??? | | #???????????# #??? | | #???????????# #??? | | " ##+#### ############# #??? | | " # + #??? | | # ################+#### | | [ # """###########??# # | | ########## # """# #??# T # | | ########?# # """# #??# # | | # #?# # # #??# # | | # #?# # !# YY #??# # | | # """ #?# ####### #??# [ # | | # """ #?# #?????# u #??######## | | # """ ??# ####### #?????????? | | # ???# ##! ## @! #?????????? | | ###+###??# ##! #####+######??##?????? | | #??# ##= #???? !! ????? | | #??# ##= #??"" !! ????? | | #### ## [= # "R" #???? | | #### # # ## !%= + " " #???? | | # #### ######[! # """ ????? | | # # """ ????? | | " # #? """ ????? | | " # = #? #???? | | " ######+##### #??###### #???? | | # %* ## #?????????????? | | #### ## %%% #?????????????? | | ???# ## %%% #?????????????? | | ???+ ## %%% #?????????????? | | ???# ## "????????????? | | ???# ## R????????????? | | ???# ## """ """???????????? | | ???# ## """ ###???????????? | | ???############ """ #?????????????? | | ??????????????# #?????????????? | | ??????????????# ? #?????????????? | | ??????????????# ""? #?????????????? | | ??????????????# ""? ??????????????? | | ?????????????? "?? ??????????????? | +----------------------------------------------------+ Best States ------------- Heat Dissipation 50 Energy Generation 10 Energy Capacity 250 Matter Stores 300 Matter Capacity 350 Sight Range 18 Terrain Scan Density 10 ECM Strength 1 Evasion (%) 55 Targeting Accuracy 6 Item Schematics ----------------- None Robot Schematics ------------------ None Fabricated ------------ Nothing Alien Tech Used ----------------- None Achievements -------------- Risk Taker Use The Force Challenges ------------ None Game ------ Seed SalvageGrapheneSpoofer Manual? 0 Play Time 00:36:44 Cumulative 1.2 hours Start 2024.04.18 @ 18:54:48 End 2024.04.18 @ 19:54:56 Sessions 1 Manual Loads 0 Difficulty Rogue Special Mode None Game No. 2 Rogue 2 Adventurer 0 Explorer 0 Win Type - Total 0 Types 0/0/0/0/0/0/0/0/0 Lore% 4 Gallery% 2 Achievement% 2 Wizard Run 0 Options --------- Layout 0 ASCII 1 Keyboard 1 Movement Arrows Keybinds 0 Fullscreen 2 Font 24/Terminus Map View 76x50 Zoom Use 0% Tactical HUD 0 Map Filters NONE Filters NONE Steam 1 RUN: 9559735e-5fc6-4302-8550-c3cb059f0603